bitfinex-derivatives/quotes_SOLF0:USTF0_20250331
["timestamp","ask_amount","ask_price","bid_price","bid_amount"]
[1743460301566,8.03368988,125.32,125.29,0.05831732]
[1743460301755,0.05128988,125.32,125.29,8.04151732]
[1743460301960,0.05128988,125.32,125.29,13.30914015]
[1743460302261,0.05128988,125.32,125.3,13.25082283]
[1743460303568,0.05128988,125.32,125.31,7.9824]
[1743460307567,1.38863949,125.41,125.31,37.68]
[1743460307871,7.9757,125.42,125.39,13.25082283]
[1743460308067,13.25082283,125.44,125.4,7.9763]
[1743460308273,13.25082283,125.44,125.39,13.25082283]
[1743460308463,13.25082283,125.42,125.37,13.25082283]
[1743460308863,0.02323033,125.41,125.38,13.30946369]
[1743460309167,0.02323033,125.41,125.39,13.25082283]
[1743460309771,0.02323033,125.41,125.38,20.65450269]
[1743460312274,29.7,125.4,125.38,0.05864086]
[1743460312477,29.72323033,125.41,125.38,0.05864086]
[1743460315068,0.02323033,125.41,125.38,0.05864086]
[1743460317672,0.02323033,125.41,125.39,7.9771]
[1743460317874,0.02323033,125.41,125.38,0.05864086]
[1743460318373,0.02323033,125.41,125.38,8.03624086]
[1743460319078,0.02323033,125.41,125.39,7.9772]
[1743460319279,0.02323033,125.41,125.39,15.2922]
[1743460320178,0.02323033,125.41,125.39,7.315]
[1743460320471,0.02323033,125.41,125.38,0.05864086]
[1743460320671,7.99933033,125.41,125.38,0.05864086]
[1743460320872,0.02323033,125.41,125.38,0.05864086]
[1743460321175,7.977,125.4,125.38,0.05864086]
[1743460321572,29.68,125.39,125.38,0.05864086]
[1743460321772,50.27586183,125.39,125.32,7.9814]
[1743460321975,50.27586183,125.39,125.29,27.88966183]
[1743460322175,20.59586183,125.37,125.29,27.88966183]
[1743460322378,20.59586183,125.35,125.29,7.2938]
[1743460322576,287.02,125.4,125.24,118.23474817]
[1743460322577,20.59586183,125.31,125.24,88.51474817]
[1743460322772,0.05856721,125.29,125.26,0.05099248]
[1743460323779,0.05856721,125.29,125.26,8.03639248]
[1743460324281,0.05856721,125.29,125.26,0.05099248]
[1743460324476,0.05856721,125.29,125.26,20.64685431]
[1743460325079,0.05856721,125.29,125.26,50.48685431]
[1743460325280,0.05856721,125.29,125.28,7.9843]
[1743460326679,0.05856721,125.29,125.26,20.64685431]
[1743460327183,0.05856721,125.29,125.26,0.05099248]
[1743460327482,8.04226721,125.29,125.26,0.05099248]
[1743460328084,8.04226721,125.29,125.26,8.03649248]
[1743460328584,0.05856721,125.29,125.27,7.9849]
[1743460330991,0.05856721,125.29,125.28,7.9843]
[1743460331587,29.74,125.34,125.28,7.9843]
[1743460331588,29.76,125.34,125.28,20.59586183]
[1743460331788,29.76,125.34,125.28,23.63686183]
[1743460332488,7.9798,125.36,125.31,7.9819]
[1743460332689,0.02330398,125.32,125.31,7.9819]
[1743460332890,29.76,125.35,125.32,7.9815]
[1743460333084,0.02330398,125.33,125.32,7.9815]
[1743460335987,0.02330398,125.33,125.31,7.9822]
[1743460336188,0.02330398,125.33,125.3,0.05077178]
[1743460336388,7.9824,125.31,125.3,0.05077178]
[1743460338994,37.7019,125.32,125.3,0.05077178]
[1743460340995,7.9824,125.31,125.3,0.05077178]
[1743460344099,28.57826183,125.31,125.3,0.05077178]
[1743460344998,7.9824,125.31,125.3,0.05077178]
[1743460348202,37.7024,125.31,125.3,0.05077178]
[1743460361706,50.91350712,125.31,125.3,0.05077178]
[1743460362706,42.93110712,125.31,125.23,5.3233]
[1743460362911,42.93110712,125.31,125.2,13.21110712]
[1743460362912,13.21110712,125.25,125.2,13.21110712]
[1743460363114,42.93110712,125.24,125.2,13.21110712]
[1743460363509,50.91840712,125.24,125.21,7.9884]
[1743460363703,37.7073,125.24,125.18,29.54996515]
[1743460363909,29.77672057,125.24,125.21,0.06111259]
[1743460364813,29.77672057,125.24,125.21,8.04931259]
[1743460367211,29.77672057,125.24,125.22,7.988]
[1743460367518,29.77672057,125.24,125.21,0.06111259]
[1743460368021,0.05672057,125.24,125.21,0.06111259]
[1743460368317,29.77672057,125.24,125.21,0.06111259]
[1743460369718,29.77672057,125.24,125.23,7.9875]
[1743460370815,0.05672057,125.24,125.23,7.9875]
[1743460372623,20.66056515,125.3,125.21,0.06111259]
[1743460372820,29.72,125.29,125.22,20.66056515]
[1743460373121,29.72,125.29,125.24,20.66056515]
[1743460373718,29.72,125.29,125.28,7.9837]
[1743460374423,29.67236515,125.32,125.25,0.05042267]
[1743460374625,29.72,125.31,125.25,0.05042267]
[1743460374827,20.66056515,125.34,125.26,20.66056515]
[1743460375022,29.72,125.32,125.27,0.05072746]
[1743460375829,29.72,125.33,125.31,7.9824]
[1743460376123,29.72,125.33,125.31,8.04042059]
[1743460377128,28.64106515,125.34,125.31,8.04042059]
[1743460377323,29.72,125.33,125.32,7.9817]
[1743460381426,29.72,125.33,125.31,8.04012059]
[1743460382028,29.72,125.33,125.32,7.9818]
[1743460382331,58.34106515,125.34,125.32,7.9818]
[1743460382726,50.36056515,125.34,125.32,7.9818]
[1743460382928,29.7,125.34,125.33,7.9811]
[1743460383319,37.6806,125.34,125.31,0.05802059]
[1743460383529,37.6806,125.34,125.31,8.03992059]
[1743460383828,29.7,125.34,125.31,0.05802059]
[1743460384031,29.7,125.34,125.31,8.04012059]
[1743460384827,29.7,125.34,125.31,0.05802059]
[1743460385132,20.66056515,125.32,125.31,0.05802059]
[1743460385322,28.64236515,125.32,125.31,0.05802059]
[1743460388033,7.9815,125.33,125.31,0.05802059]
[1743460388734,50.36056515,125.34,125.31,0.05802059]
[1743460389637,20.66056515,125.32,125.31,0.05802059]
[1743460389843,7.9842,125.29,125.22,20.66056515]
[1743460390030,29.7,125.29,125.22,20.66056515]
[1743460390232,29.7,125.29,125.25,7.9859]
[1743460390832,7.985,125.27,125.24,7.9865]
[1743460391030,7.985,125.27,125.26,0.05511347]
[1743460394543,8.03616183,125.28,125.26,0.05511347]
[1743460399644,7.9849,125.27,125.26,0.05511347]
[1743460401736,21.20419245,125.27,125.26,0.05511347]
[1743460406444,7.9885,125.22,125.19,7.9897]
[1743460406644,37.6885,125.22,125.19,7.9897]
[1743460407555,37.74346407,125.22,125.19,8.0428338]
[1743460408555,7.9891,125.21,125.19,0.0531338]
[1743460409957,21.20839245,125.21,125.19,0.0531338]
[1743460410258,50.96275652,125.22,125.19,8.0426338]
[1743460410660,42.97425652,125.22,125.19,0.0531338]
[1743460411150,42.97425652,125.22,125.2,7.9894]
[1743460417974,42.97425652,125.22,125.21,7.9888]
[1743460418261,0.05496407,125.22,125.21,7.9888]
[1743460420469,13.21929245,125.26,125.25,7.9862]
[1743460420663,29.7,125.27,125.24,13.21929245]
[1743460421070,42.91929245,125.29,125.27,7.9848]
[1743460421670,42.97088647,125.29,125.27,8.03586424]
[1743460421865,29.75159402,125.29,125.28,7.9843]
[1743460422267,0.05159402,125.29,125.28,7.9843]
[1743460422466,29.75159402,125.29,125.28,7.9843]
[1743460423471,0.05159402,125.29,125.28,7.9843]
[1743460428465,0.05159402,125.29,125.27,0.05106424]
[1743460428669,29.7,125.28,125.27,0.05106424]
[1743460429676,0.05159402,125.29,125.27,0.05106424]
[1743460429875,0.05159402,125.29,125.27,8.03596424]
[1743460435570,8.03529402,125.29,125.27,8.03596424]
[1743460438476,0.05159402,125.29,125.28,7.9843]
[1743460438675,0.05159402,125.29,125.27,0.05106424]
[1743460439781,7.9843,125.28,125.27,0.05106424]
[1743460441682,28.62050569,125.28,125.27,0.05106424]
[1743460441881,20.63620569,125.24,125.17,6.235]
[1743460442078,29.68,125.23,125.17,6.235]
[1743460442272,20.63620569,125.22,125.17,4.2572]
[1743460442985,0.06086653,125.21,125.18,0.05142375]
[1743460443186,29.68,125.2,125.18,0.05142375]
[1743460443479,7.99,125.19,125.18,0.05142375]
[1743460443684,0.06086653,125.21,125.18,0.05142375]
[1743460444077,0.06086653,125.21,125.2,7.9894]
[1743460455691,0.06086653,125.21,125.19,7.9897]
[1743460455891,13.28397059,125.21,125.18,0.05142375]
[1743460456092,13.22310406,125.2,125.18,0.05142375]
[1743460456797,29.68,125.19,125.18,0.05142375]
[1743460457798,29.68,125.19,125.18,8.04182375]
[1743460459400,29.76086653,125.21,125.19,7.9894]
[1743460463095,50.97277059,125.21,125.18,8.04182375]
[1743460463702,21.21270406,125.2,125.18,0.05142375]
[1743460472705,13.22310406,125.2,125.18,8.04202375]
[1743460473603,50.97307059,125.21,125.18,8.04202375]
[1743460476203,7.9894,125.2,125.18,8.04202375]
[1743460476905,50.97307059,125.21,125.18,8.04202375]
[1743460480511,37.74996653,125.21,125.18,8.04202375]
[1743460480713,50.97307059,125.21,125.18,8.04202375]
[1743460485922,13.22310406,125.2,125.18,8.04202375]
[1743460486124,21.21260406,125.2,125.18,8.04202375]
[1743460486312,13.22310406,125.2,125.18,8.04202375]
[1743460486516,42.98397059,125.21,125.18,8.04202375]
[1743460486824,50.97307059,125.21,125.18,8.04202375]
[1743460488123,50.97307059,125.21,125.19,7.9899]
[1743460488924,50.97307059,125.21,125.18,8.04172375]
[1743460492020,0.06086653,125.21,125.2,7.9894]
[1743460492226,0.06086653,125.21,125.2,21.21250406]
[1743460492726,42.90310406,125.27,125.2,21.20310406]
[1743460492920,29.68,125.27,125.23,13.22310406]
[1743460493321,29.68,125.27,125.26,7.9856]
[1743460493521,13.22310406,125.28,125.26,7.9856]
[1743460493724,42.90310406,125.28,125.26,7.9856]
[1743460494026,42.95378689,125.28,125.26,8.03832786]
[1743460494526,42.95378689,125.28,125.26,0.05272786]
[1743460495328,29.73068283,125.28,125.26,0.05272786]
[1743460495719,0.05068283,125.28,125.27,13.22310406]
[1743460495922,0.05068283,125.28,125.26,0.05272786]
[1743460496128,13.27378689,125.28,125.26,0.05272786]
[1743460496328,21.25848689,125.28,125.26,0.05272786]
[1743460496517,0.05068283,125.28,125.26,0.05272786]
[1743460497524,0.05068283,125.28,125.27,7.9849]
[1743460497824,13.27378689,125.28,125.26,0.05272786]
[1743460498029,21.20800406,125.27,125.26,0.05272786]
[1743460498226,13.22310406,125.27,125.19,13.22310406]
[1743460498426,13.22310406,125.24,125.19,13.22310406]
[1743460498619,42.88310406,125.23,125.2,7.9891]
[1743460498826,42.88310406,125.23,125.18,15.40060406]
[1743460499123,50.87090406,125.23,125.18,15.40060406]
[1743460499323,0.05294213,125.22,125.19,0.0599894]
[1743460499929,0.05294213,125.22,125.2,7.989]
[1743460500319,0.05294213,125.22,125.19,13.28309346]
[1743460500631,8.04154213,125.22,125.19,0.0599894]
[1743460501128,7.9889,125.21,125.19,0.0599894]
[1743460502325,29.66,125.2,125.19,0.0599894]
[1743460502827,37.6494,125.2,125.19,0.0599894]
[1743460504324,50.87250406,125.2,125.19,0.0599894]
[1743460504524,42.88310406,125.2,125.13,17.43380406]
[1743460504730,13.22310406,125.14,125.1,2.1896]
[1743460504931,42.88310406,125.13,125.09,88.51474817]
[1743460505130,37.6548,125.12,125.09,88.51474817]
[1743460505333,29.66,125.12,125.09,88.51474817]
[1743460505535,29.66,125.12,125.1,7.9956]
[1743460505732,29.71336051,125.12,125.1,7.9956]
[1743460506426,0.05336051,125.12,125.11,7.9952]
[1743460506635,13.22310406,125.17,125.11,13.22310406]
[1743460506826,42.88310406,125.17,125.12,13.22310406]
[1743460507132,42.88310406,125.17,125.14,7.9929]
[1743460507534,42.88310406,125.17,125.12,13.22310406]
[1743460507935,0.05674431,125.16,125.13,0.05166763]
[1743460508343,13.22310406,125.15,125.13,0.05166763]
[1743460508535,42.90310406,125.14,125.13,0.05166763]
[1743460509840,50.89630406,125.14,125.13,0.05166763]
[1743460510037,42.90310406,125.14,125.09,7.996]
[1743460510237,13.22310406,125.12,125.08,76.28309565]
[1743460510438,42.90310406,125.11,125.08,84.27979565]
[1743460510740,42.90310406,125.11,125.08,76.28309565]
[1743460510940,29.68,125.11,125.08,76.28309565]
[1743460511338,29.73922329,125.11,125.08,89.5610883]
[1743460511533,0.05922329,125.11,125.1,21.21890406]
[1743460511737,29.68,125.15,125.1,13.22310406]
[1743460512039,13.22310406,125.16,125.14,7.9928]
[1743460512539,13.22310406,125.16,125.11,13.22310406]
[1743460512739,13.27764179,125.16,125.15,7.9926]
[1743460513338,13.27764179,125.16,125.14,8.05287872]
[1743460513735,0.05453773,125.16,125.14,8.05287872]
[1743460514642,0.05453773,125.16,125.14,0.05997872]
[1743460515341,0.05453773,125.16,125.14,8.05307872]
[1743460516143,0.05453773,125.16,125.14,0.05997872]
[1743460517237,20.74370806,125.16,125.14,0.05997872]
[1743460517442,20.74370806,125.16,125.08,76.28309565]
[1743460517638,20.68917033,125.14,125.08,76.28309565]
[1743460517839,29.68,125.13,125.08,76.28309565]
[1743460518033,7.995,125.12,125.08,84.27979565]
[1743460518642,0.05794817,125.11,125.09,0.05591677]
[1743460518843,0.05794817,125.11,125.09,8.05231677]
[1743460519246,0.05794817,125.11,125.09,0.05591677]
[1743460519742,0.05794817,125.11,125.1,7.9958]
[1743460523338,4.817e-05,125.11,125.1,7.9958]
[1743460535756,4.817e-05,125.11,125.1,21.2386411]
[1743460536856,4.817e-05,125.11,125.1,7.9958]
[1743460538149,4.817e-05,125.11,125.09,8.05201677]
[1743460538356,13.24288927,125.11,125.09,0.05591677]
[1743460538748,13.2428411,125.1,125.09,0.05591677]
[1743460541157,21.2386411,125.1,125.09,0.05591677]
[1743460541955,13.2428411,125.1,125.09,0.05591677]
[1743460542259,4.817e-05,125.11,125.09,0.05591677]
[1743460542459,4.817e-05,125.11,125.1,21.2386411]
[1743460543257,4.817e-05,125.11,125.1,50.9186411]
[1743460544560,4.817e-05,125.11,125.1,52.36561307]
[1743460545248,4.817e-05,125.11,125.1,50.9186411]
[1743460545455,4.817e-05,125.11,125.1,52.36559488]
[1743460545656,4.817e-05,125.11,125.1,59.80641562]
[1743460546860,4.817e-05,125.11,125.1,58.35946184]
[1743460547259,4.817e-05,125.11,125.1,7.9958]
[1743460551864,4.817e-05,125.11,125.1,28.67946184]
[1743460554262,29.66,125.19,125.17,7.9909]
[1743460554563,20.68366184,125.21,125.12,50.34366184]
[1743460554872,58.33286184,125.21,125.14,20.68366184]
[1743460555165,50.34366184,125.21,125.14,20.68366184]
[1743460555367,0.05650546,125.19,125.16,0.05831751]
[1743460555967,0.05650546,125.19,125.17,7.991]
[1743460556363,8.04670546,125.19,125.16,0.05831751]
[1743460556564,29.66,125.18,125.16,0.05831751]
[1743460556965,7.9913,125.17,125.16,0.05831751]
[1743460557164,20.68366184,125.17,125.09,6.2449]
[1743460558464,0.05169043,125.14,125.12,0.05128271]
[1743460559063,7.9939,125.13,125.12,0.05128271]
[1743460559470,8.04529043,125.14,125.12,0.05128271]
[1743460559764,0.05169043,125.14,125.12,0.05128271]
[1743460560165,0.05169043,125.14,125.13,7.9939]
[1743460562871,0.05169043,125.14,125.12,0.05128271]
[1743460562872,2.1002,125.2,125.16,7.9915]
[1743460563068,2.1002,125.2,125.12,20.73494455]
[1743460563069,29.66,125.19,125.12,20.68366184]
[1743460564071,0.05124045,125.17,125.14,0.05530822]
[1743460564672,8.04254045,125.17,125.15,7.9923]
[1743460566270,7.9921,125.16,125.14,0.05530822]
[1743460566477,0.05124045,125.17,125.14,0.05530822]
[1743460566772,29.66,125.16,125.14,0.05530822]
[1743460567174,7.9926,125.15,125.14,0.05530822]
[1743460569078,7.9946,125.12,125.1,7.9955]
[1743460569273,29.66,125.13,125.08,76.28309565]
[1743460569466,50.34366184,125.13,125.08,84.27959565]
[1743460569777,7.9954,125.11,125.08,84.27959565]
[1743460570172,8.04997999,125.11,125.08,84.34028951]
[1743460572078,0.05457999,125.11,125.08,84.34028951]
[1743460573280,0.05457999,125.11,125.09,7.9964]
[1743460573482,0.05457999,125.11,125.08,76.34378951]
[1743460573882,0.05457999,125.11,125.1,7.9958]
[1743460574070,2.0768,125.16,125.09,20.68366184]
[1743460574277,29.66,125.17,125.09,26.97096184]
[1743460574981,37.6515,125.17,125.09,26.97096184]
[1743460575284,0.05235469,125.14,125.12,0.05267349]
[1743460575474,0.05235469,125.14,125.13,7.9939]
[1743460578694,5.469e-05,125.14,125.13,7.9939]
[1743460587699,5.469e-05,125.14,125.13,21.22980197]
[1743460588198,5.469e-05,125.14,125.12,8.04687349]
[1743460589597,7.99325469,125.14,125.12,0.05267349]
[1743460593602,7.9939,125.13,125.12,0.05267349]
[1743460596104,7.9954,125.11,125.08,84.27979565]
[1743460597199,8.0567787,125.11,125.08,84.33904146]
[1743460597503,0.0613787,125.11,125.08,84.33904146]
[1743460597799,0.0613787,125.11,125.1,7.9958]
[1743460601506,0.0613787,125.11,125.09,7.996]
[1743460602707,0.0613787,125.11,125.1,7.9958]
[1743460607508,29.64,125.15,125.13,7.9937]
[1743460607907,29.64,125.15,125.08,96.97372124]
[1743460608110,29.64,125.15,125.12,7.9942]
[1743460608606,37.69213261,125.15,125.12,8.04894027]
[1743460609605,7.9933,125.14,125.12,0.05474027]
[1743460610212,50.3898582,125.15,125.12,0.05474027]
[1743460611008,20.69062559,125.13,125.12,0.05474027]
[1743460611211,50.3898582,125.15,125.12,0.05474027]
[1743460611406,7.9939,125.13,125.12,0.05474027]
[1743460611808,21.24358698,125.13,125.12,0.05474027]
[1743460623115,7.996,125.1,125.08,76.28309565]
[1743460623319,13.24968698,125.09,125.08,76.28309565]
[1743460623520,13.24968698,125.09,125.08,67.57989565]
[1743460623721,7.9985,125.06,125.02,92.92975778]
[1743460623922,50.88818698,125.06,125.03,8.0]
[1743460624423,50.94678944,125.06,125.03,8.05599747]
[1743460624824,29.69860246,125.06,125.03,8.05599747]
[1743460625022,29.69860246,125.06,125.04,7.9995]
[1743460625924,29.69860246,125.06,125.05,7.999]
[1743460626224,0.05860246,125.06,125.05,7.999]
[1743460627718,287.66,125.11,125.08,7.9971]
[1743460627719,13.24968698,125.1,125.08,7.9971]
[1743460628017,10.97167532,125.12,125.09,13.24968698]
[1743460628218,131.74248428,125.14,125.12,7.9945]
[1743460628419,131.74248428,125.14,125.12,21.24418698]
[1743460628823,131.79561411,125.14,125.12,21.24418698]
[1743460629420,0.05312983,125.14,125.13,7.9939]
[1743460630026,0.05312983,125.14,125.11,0.05689998]
[1743460631126,0.05312983,125.14,125.11,8.05169998]
[1743460632027,0.05312983,125.14,125.11,0.05689998]
[1743460632930,8.04662983,125.14,125.11,0.05689998]
[1743460633428,7.9945,125.12,125.11,0.05689998]
[1743460635022,0.05312983,125.14,125.11,0.05689998]
[1743460636027,0.05312983,125.14,125.12,7.9941]
[1743460636825,0.05312983,125.14,125.13,7.9939]
[1743460637029,0.05312983,125.14,125.11,0.05689998]
[1743460637631,7.9942,125.13,125.11,0.05689998]
[1743460637828,29.67312983,125.14,125.11,0.05689998]
[1743460638326,7.9945,125.12,125.11,0.05689998]
[1743460638724,37.66682983,125.14,125.11,0.05689998]
[1743460638926,0.05312983,125.14,125.11,0.05689998]
[1743460639930,0.05312983,125.14,125.12,7.9939]
[1743460640124,0.05312983,125.14,125.11,0.05689998]
[1743460640529,7.9939,125.13,125.11,0.05689998]
[1743460641730,7.9945,125.12,125.11,0.05689998]
[1743460642936,0.05312983,125.14,125.11,0.05689998]
[1743460643641,0.05312983,125.14,125.11,2.05609998]
[1743460643839,20.68754523,125.19,125.11,4.12009998]
[1743460644045,29.62,125.2,125.12,20.68754523]
[1743460644232,29.62,125.2,125.13,29.62]
[1743460645042,37.61,125.2,125.17,7.991]
[1743460645242,37.61,125.2,125.15,0.05669492]
[1743460645543,29.62,125.2,125.15,0.05669492]
[1743460645937,7.9904,125.19,125.16,7.9918]
[1743460647333,7.9907,125.18,125.15,8.04899492]
[1743460649138,7.9907,125.18,125.16,7.9919]
[1743460650043,7.9907,125.18,125.15,8.04899492]
[1743460650247,7.9914,125.17,125.15,8.04899492]
[1743460650835,29.62,125.2,125.15,0.05669492]
[1743460651041,20.68754523,125.19,125.15,0.05669492]
[1743460651341,22.87014523,125.19,125.15,0.05669492]
[1743460652543,7.992,125.16,125.15,0.05669492]
[1743460652842,37.592,125.16,125.15,0.05669492]
[1743460661843,300.87513545,125.21,125.15,13.29183037]
[1743460662046,300.87513545,125.21,125.16,13.23513545]
[1743460662239,7.9898,125.2,125.17,7.9912]
[1743460662637,7.9898,125.2,125.17,8.04636865]
[1743460665344,7.9901,125.19,125.17,8.04636865]
[1743460665743,287.64,125.21,125.17,0.05516865]
[1743460666051,7.9907,125.18,125.17,0.05516865]
[1743460671255,29.6,125.19,125.17,0.05516865]
[1743460671556,317.24,125.21,125.17,0.05516865]
[1743460671853,7.9897,125.2,125.17,8.04596865]
[1743460673755,7.9901,125.19,125.17,0.05516865]
[1743460674554,37.5907,125.18,125.17,0.05516865]
[1743460683759,50.82844349,125.18,125.17,0.05516865]
[1743460683960,37.5907,125.18,125.17,0.05516865]
[1743460688761,29.58,125.2,125.17,0.05516865]
[1743460689261,330.45774349,125.21,125.17,0.05516865]
[1743460689462,7.9897,125.2,125.17,0.05516865]
[1743460689962,7.9897,125.2,125.17,8.04606865]
[1743460691664,330.45774349,125.21,125.17,0.05516865]
[1743460692367,7.99,125.2,125.17,0.05516865]
[1743460692570,330.45774349,125.21,125.17,0.05516865]
[1743460692865,7.9895,125.2,125.17,8.04646865]
[1743460693168,330.45774349,125.21,125.17,8.04646865]
[1743460694168,300.87774349,125.21,125.17,8.04646865]
[1743460694362,330.45774349,125.21,125.17,8.04646865]
[1743460694867,7.9895,125.2,125.17,8.04646865]
[1743460695170,330.45774349,125.21,125.17,8.04646865]
[1743460695670,13.23774349,125.2,125.17,8.04646865]
[1743460696770,7.9902,125.19,125.17,8.04646865]
[1743460702374,13.23774349,125.2,125.17,0.05516865]
[1743460702575,338.44684349,125.21,125.17,13.29291214]
[1743460702873,325.2091,125.21,125.17,13.29291214]
[1743460703062,325.2091,125.21,125.18,7.9904]
[1743460703468,37.5691,125.21,125.18,7.9904]
[1743460704070,13.23774349,125.22,125.17,13.29291214]
[1743460704275,10.97999329,125.25,125.21,13.23774349]
[1743460704478,10.97999329,125.25,125.22,13.23774349]
[1743460704678,10.97999329,125.25,125.24,7.9869]
[1743460704879,10.97999329,125.25,125.24,21.22464349]
[1743460705677,10.97999329,125.25,125.23,21.22504349]
[1743460706876,10.97999329,125.25,125.24,7.9869]
[1743460707878,50.80294349,125.27,125.24,7.9869]
[1743460708274,7.9856,125.26,125.23,21.22494349]
[1743460710471,7.9863,125.25,125.23,21.22494349]
[1743460710671,7.9863,125.25,125.22,21.28363213]
[1743460711784,7.9859,125.26,125.22,13.29583213]
[1743460712583,7.9859,125.26,125.23,7.987]
[1743460713783,7.9866,125.25,125.22,21.28363213]
[1743460714381,7.9866,125.25,125.23,7.9875]
[1743460714587,7.9859,125.26,125.23,7.9875]
[1743460715387,7.9859,125.26,125.24,7.9868]
[1743460716089,50.78294349,125.27,125.24,7.9868]
[1743460718389,7.9857,125.26,125.24,7.9868]
[1743460718893,7.9857,125.26,125.23,7.9873]
[1743460719393,7.9863,125.25,125.23,7.9873]
[1743460721094,7.9859,125.26,125.23,7.9873]
[1743460721396,42.79774349,125.27,125.24,7.9868]
[1743460721596,50.78304349,125.27,125.24,7.9868]
[1743460722197,2.1279,125.32,125.25,13.23774349]
[1743460722397,13.23774349,125.3,125.26,13.23774349]
[1743460722699,7.9833,125.3,125.28,7.9842]
[1743460722892,29.54,125.31,125.28,7.9842]
[1743460723093,29.54,125.31,125.27,13.29188182]
[1743460723297,7.9824,125.31,125.28,7.9842]
[1743460723797,7.9824,125.31,125.28,21.22194349]
[1743460725898,21.21964349,125.32,125.29,7.9835]
[1743460726399,7.9819,125.32,125.29,7.9835]
[1743460726600,42.77774349,125.33,125.28,13.23774349]
[1743460726601,50.75924349,125.33,125.28,13.23774349]
[1743460726799,13.23774349,125.32,125.28,13.23774349]
[1743460727598,7.9828,125.31,125.28,21.22174349]
[1743460727799,7.9828,125.31,125.28,7.984]
[1743460729300,7.9831,125.3,125.27,21.27648182]
[1743460729698,7.9831,125.3,125.27,13.29188182]
[1743460730795,7.9831,125.3,125.28,7.9842]
[1743460731798,7.9827,125.31,125.29,7.9836]
[1743460732301,7.9827,125.31,125.28,21.22184349]
[1743460732497,7.9831,125.3,125.28,21.22184349]
[1743460734599,7.9827,125.31,125.28,21.22184349]
[1743460735403,7.9821,125.32,125.29,7.9835]
[1743460735598,7.9821,125.32,125.28,13.23774349]
[1743460735802,42.77774349,125.33,125.28,13.23774349]
[1743460736102,42.77774349,125.33,125.3,7.9827]
[1743460736306,42.77774349,125.33,125.28,13.23774349]
[1743460736508,42.77774349,125.33,125.3,0.05372009]
[1743460737105,330.27774349,125.34,125.3,0.05372009]
[1743460737598,308.73854349,125.34,125.31,7.9823]
[1743460737799,295.5008,125.34,125.31,7.9823]
[1743460738604,295.5008,125.34,125.32,7.9816]
[1743460738799,300.75774349,125.34,125.3,0.05372009]
[1743460739007,13.23774349,125.33,125.3,0.05372009]
[1743460739206,42.75774349,125.32,125.3,0.05372009]
[1743460739396,29.52,125.32,125.3,0.05372009]
[1743460740304,29.52,125.32,125.3,8.03612009]
[1743460740504,29.52,125.32,125.3,0.05372009]
[1743460740998,37.5019,125.32,125.3,0.05372009]
[1743460741202,42.75774349,125.32,125.3,0.05372009]
[1743460741398,13.23774349,125.31,125.23,7.9872]
[1743460741604,13.23774349,125.27,125.22,13.23774349]
[1743460741802,42.75774349,125.29,125.24,13.23774349]
[1743460742107,7.9843,125.28,125.25,7.9858]
[1743460742303,13.23774349,125.28,125.23,13.23774349]
[1743460742502,13.29367527,125.28,125.25,0.05334569]
[1743460743503,7.9853,125.27,125.25,0.05334569]
[1743460743703,13.29367527,125.28,125.25,0.05334569]
[1743460744611,21.27837527,125.28,125.25,8.03954569]
[1743460745610,8.04063178,125.28,125.25,8.03954569]
[1743460750415,7.985,125.27,125.25,0.05334569]
[1743460751017,7.9849,125.27,125.25,0.05334569]
[1743460753822,7.9856,125.26,125.25,0.05334569]
[1743460755123,7.9852,125.27,125.25,0.05334569]
[1743460755608,21.27827527,125.28,125.25,8.03954569]
[1743460756012,7.9849,125.27,125.25,0.05334569]
[1743460757121,7.9856,125.26,125.25,0.05334569]
[1743460759122,7.9852,125.27,125.25,0.05334569]
[1743460760127,21.27827527,125.28,125.25,8.03954569]
[1743460760325,2.005,125.33,125.27,13.23774349]
[1743460760326,29.52,125.32,125.27,13.23774349]
[1743460760515,29.52,125.32,125.28,13.23774349]
[1743460760721,29.52,125.32,125.29,7.9837]
[1743460761023,13.23774349,125.31,125.26,13.23774349]
[1743460761221,13.23774349,125.3,125.26,7.9853]
[1743460761427,13.23774349,125.3,125.25,15.29334349]
[1743460761428,7.984,125.29,125.27,0.05065869]
[1743460761624,21.22174349,125.29,125.27,0.05065869]
[1743460762227,13.23774349,125.3,125.27,0.05065869]
[1743460763027,13.23774349,125.3,125.28,7.9843]
[1743460763229,21.22054349,125.31,125.28,7.9843]
[1743460763927,13.23774349,125.31,125.29,7.9835]
[1743460766529,7.9824,125.31,125.29,7.9835]
[1743460767327,7.9824,125.31,125.28,7.9839]